fUSD/lending_fUSD_20240808
["ID","MTS","AMOUNT","RATE_DAILY","PERIOD"]
[334464669,1723128639384,-1000.0,0.0001889,2]
[334464671,1723128639395,-213.2091,0.000189,2]
[334464672,1723128639405,-2410.46399,0.0001893,2]
[334464673,1723128639415,-200.0,0.00018948,7]
[334464674,1723128639424,-526.30280142,0.00018999,2]
[334464675,1723128639434,-8586.57140511,0.00019,2]
[334464676,1723128639443,-8586.57140511,0.00019,2]
[334464677,1723128639452,-8407.42875911,0.00019,2]
[334464678,1723128639462,-628.3730026,0.00019045,2]
[334464679,1723128639471,-171.38543183,0.00019045,2]
[334464680,1723128639481,-530.62,0.0001926,2]
[334464681,1723128639490,-398.43,0.000195,2]
[334464682,1723128639499,-1123.0237,0.0001979,2]
[334464683,1723128639509,-3603.38042712,0.00019797,2]
[334464684,1723128639518,-150.65729119,0.00019797,2]
[334464685,1723128639527,-500.0,0.00019825,2]
[334464686,1723128639537,-21226.986608,0.0001988,4]
[334464687,1723128639549,-1233.20111343,0.0001989,2]
[334464688,1723128639564,-255.47307141,0.0001989,2]
[334464689,1723128639575,-600.0,0.0001989,2]
[334464690,1723128639597,-713.52089121,0.0001989,2]
[334464691,1723128639609,-464.49215407,0.0001989,2]
[334464692,1723128639620,-14560.0,0.0001989,2]
[334464693,1723128639631,-653.05085072,0.0001989,2]
[334464694,1723128639650,-6136.99102678,0.0001989,2]
[334464695,1723128639661,-282.04696975,0.0001989,2]
[334464696,1723128639672,-566.76354058,0.0001989,2]
[334464697,1723128639683,-56723.37880858,0.0001989,2]
[334464698,1723128639695,-285.49172499,0.0001989,2]
[334464699,1723128639706,-6438.79205681,0.0001989,2]
[334464700,1723128639719,-5528.40285394,0.0001989,2]
[334464703,1723128640202,-3091.8025036,0.00016696,2]
[334464704,1723128640212,-283.66657836,0.0001989,2]
[334464705,1723128640989,-1248.0,0.0001989,2]
[334464706,1723128641001,-958.3566,0.0001989,2]
[334464707,1723128641016,-278.08683866,0.0001989,2]
[334464708,1723128641027,-1567.16448792,0.0001989,2]
[334464712,1723128641038,-965.91314211,0.0001989,2]
[334464715,1723128641051,-543.43566378,0.0001989,2]
[334464717,1723128641062,-584.23,0.0001989,2]
[334464750,1723128643595,-1740.63,0.00016696,2]
[334464752,1723128644180,-636.225,0.00016696,2]
[334464753,1723128644192,-4504.94787476,0.00016696,2]
[334464754,1723128644203,-125559.6770269,0.0001989,2]
[334464755,1723128644213,-323.23838513,0.000199,2]
[334464756,1723128644222,-10613.493304,0.0001998,4]
[334464757,1723128644231,-31840.479912,0.0001999,4]
[334464759,1723128644240,-3546.74269779,0.0002,2]
[334464760,1723128644249,-806.84221589,0.0002,2]
[334464761,1723128644259,-8586.57140511,0.0002,2]
[334464762,1723128644268,-8586.57140511,0.0002,2]
[334464763,1723128644278,-8586.57140511,0.0002,2]
[334464765,1723128644287,-8586.57140511,0.0002,2]
[334464766,1723128644297,-8586.57140511,0.0002,2]
[334464767,1723128644311,-2614.7572426,0.0002,3]
[334464768,1723128644321,-151.0,0.0002,2]
[334464769,1723128644331,-151.0,0.0002,2]
[334464770,1723128644341,-200.231002,0.0002,2]
[334464771,1723128644351,-200.231002,0.0002,2]
[334464772,1723128644360,-200.0,0.0002,10]
[334464773,1723128644369,-151.0,0.0002,2]
[334464774,1723128644380,-151.0,0.0002,2]
[334464775,1723128644389,-2410.464,0.0002018,2]
[334464776,1723128644399,-2024.24992124,0.00020222,2]
[334464777,1723128644409,-323.23838509,0.00020257,2]
[334464778,1723128644419,-299.83663058,0.00020315,2]
[334464779,1723128644588,-3603.38042712,0.00020364,2]
[334464780,1723128644600,-364.14,0.00020447,2]
[334464781,1723128644611,-200.53434538,0.0002054,2]
[334464782,1723128644620,-323.23838509,0.00020614,2]
[334464783,1723128644629,-152.49,0.00020658,2]
[334464784,1723128644639,-150.0,0.00020658,2]
[334464785,1723128644649,-150.0,0.00020658,2]
[334464786,1723128644659,-150.0,0.00020658,2]
[334464787,1723128644669,-150.0,0.00020658,2]
[334464788,1723128644678,-3603.38042712,0.00020931,2]
[334464789,1723128644688,-323.23838509,0.00020971,2]
[334464790,1723128644698,-10613.493304,0.0002098,4]
[334464791,1723128644708,-1000.0,0.00020989,2]
[334464792,1723128644717,-151.0,0.0002099,2]
[334464793,1723128644727,-151.0,0.0002099,2]
[334464794,1723128644736,-200.231002,0.0002099,2]
[334464795,1723128644746,-200.231002,0.0002099,2]
[334464796,1723128644757,-10613.493304,0.0002099,4]
[334464797,1723128644767,-151.8,0.0002099,2]
[334464798,1723128644777,-151.0,0.0002099,2]
[334464799,1723128644786,-151.0,0.0002099,2]
[334464800,1723128644796,-500.0,0.00021,7]
[334464801,1723128644808,-237.62634226,0.00021,2]
[334464802,1723128644818,-8586.57140511,0.00021,2]
[334464803,1723128644827,-8586.57140511,0.00021,2]
[334464804,1723128644837,-151.0,0.00021,2]
[334464805,1723128644846,-2506.2446943,0.00021242,2]
[334464806,1723128644855,-160.5110332,0.00021263,2]
[334464807,1723128644865,-323.23838509,0.00021329,2]
[334464808,1723128644878,-2410.46399,0.0002143,2]
[334464809,1723128644887,-3603.38042712,0.00021498,2]
[334464810,1723128644897,-150.65729119,0.00021498,2]
[334464811,1723128644907,-200.0,0.00021648,10]
[334464812,1723128644916,-323.23838509,0.00021686,2]
[334464813,1723128644925,-494.0,0.000217,4]
[334464814,1723128644935,-258.0,0.000217,4]
[334464815,1723128644945,-150.0,0.00021736,2]
[334464816,1723128644956,-398.43,0.00021764,2]
[334464817,1723128644965,-151.0,0.000218,2]
[334464818,1723128644975,-238.928257,0.000218,2]
[334464819,1723128644984,-10613.493304,0.00021866,4]
[334464820,1723128644994,-150.0,0.00021876,2]
[334464821,1723128645004,-151.0,0.00021879,2]
[334464822,1723128645013,-151.0,0.00021879,2]
[334464823,1723128645025,-200.231002,0.00021879,2]
[334464824,1723128645035,-200.231002,0.00021879,2]
[334464825,1723128645044,-10613.493304,0.00021886,4]
[334464826,1723128645056,-2000.0,0.000219,2]
[334464827,1723128645066,-10613.493304,0.00021903,4]
[334464828,1723128645076,-151.0,0.00021903,2]
[334464829,1723128645086,-151.0,0.00021903,2]
[334464830,1723128645095,-151.0,0.00021906,2]
[334464831,1723128645104,-151.0,0.00021906,2]
[334464832,1723128645114,-200.231002,0.00021906,2]
[334464833,1723128645123,-200.231002,0.00021906,2]
[334464834,1723128645137,-13515.3690956,0.00021913,2]
[334464835,1723128645147,-2805.697356,0.00021913,2]
[334464836,1723128645156,-12219.1288775,0.00021913,2]
[334464837,1723128645166,-151.0,0.00021913,2]
[334464838,1723128645177,-331.5705694,0.00021913,2]
[334464839,1723128645186,-2963.97864251,0.00021918,30]
[334464840,1723128645196,-611.73,0.00021918,2]
[334464841,1723128645207,-150.0,0.00021918,2]
[334464842,1723128645216,-10613.493304,0.00021923,4]
[334464843,1723128645226,-14906.5479384,0.0002197,4]
[334464844,1723128645235,-200.0,0.00021973,2]
[334464845,1723128645245,-150.0,0.00021973,2]
[334464846,1723128645254,-174.21793348,0.00021973,2]
[334464847,1723128645264,-305.71026992,0.00021973,2]
[334464848,1723128645274,-200.0,0.00021973,2]
[334464849,1723128645284,-151.0,0.0002198,7]
[334464850,1723128645293,-151.0,0.0002198,7]
[334464851,1723128645304,-200.231002,0.0002198,7]
[334464852,1723128645313,-200.231002,0.0002198,7]
[334464853,1723128645323,-151.0,0.0002198,7]
[334464854,1723128645332,-10613.493304,0.0002198,4]
[334464855,1723128645347,-10613.493304,0.0002199,4]
[334464856,1723128645356,-14906.5479384,0.0002199,4]
[334464857,1723128645366,-307.87153625,0.00022,5]
[334464858,1723128645375,-371.95167885,0.00022,2]
[334464859,1723128645385,-795.94378338,0.00022,2]
[334464860,1723128645394,-1000.0,0.00022,14]
[334464861,1723128645403,-994.0,0.00022,12]
[334464862,1723128645413,-500.0,0.00022,2]
[334464863,1723128645422,-500.0,0.00022,2]
[334464864,1723128645432,-500.0,0.00022,2]
[334464865,1723128645441,-516.28,0.00022,2]
[334464866,1723128645451,-3113.97864251,0.00022,30]
[334464867,1723128645460,-300.0,0.00022,2]
[334464868,1723128645470,-500.0,0.00022,2]
[334464869,1723128645480,-500.0,0.00022,2]
[334464870,1723128645490,-636.88,0.00022,2]
[334464871,1723128645499,-500.0,0.00022,2]
[334464872,1723128645509,-283.63,0.00022,2]
[334464873,1723128645519,-500.0,0.00022,2]
[334464874,1723128645529,-500.0,0.00022,2]
[334464875,1723128645539,-500.0,0.00022,2]
[334464876,1723128645549,-500.0,0.00022,2]
[334464877,1723128645561,-500.0,0.00022,2]
[334464878,1723128645571,-500.0,0.00022,2]
[334464879,1723128645581,-500.0,0.00022,2]
[334464880,1723128645590,-500.0,0.00022,2]
[334464881,1723128645599,-500.0,0.00022,2]
[334464882,1723128645608,-500.0,0.00022,2]
[334464883,1723128645618,-500.0,0.00022,2]
[334464884,1723128645627,-500.0,0.00022,2]
[334464885,1723128645637,-500.0,0.00022,2]
[334464886,1723128645646,-258.6,0.00022,2]
[334464887,1723128645655,-151.0,0.00022,7]
[334464888,1723128645666,-150.0,0.00022027,2]
[334464889,1723128645675,-150.0,0.00022027,2]
[334464890,1723128645685,-150.0,0.00022027,2]
[334464891,1723128645694,-151.0,0.00022039,7]
[334464892,1723128645704,-151.0,0.00022039,7]
[334464893,1723128645714,-200.231002,0.00022039,7]
[334464894,1723128645723,-200.231002,0.00022039,7]
[334464895,1723128645734,-150.0,0.00022039,2]
[334464896,1723128645743,-323.23838509,0.00022043,2]
[334464897,1723128645752,-150.0,0.00022044,2]
[334464898,1723128645762,-3603.38042712,0.00022065,2]
[334464899,1723128645772,-10613.493304,0.00022078,4]
[334464900,1723128645782,-1000.0,0.000221,14]
[334464901,1723128645792,-3113.97864251,0.0002211,30]
[334464902,1723128645803,-151.0,0.0002211,7]
[334464903,1723128645813,-277.82235236,0.00022134,2]
[334464905,1723128645822,-834.77,0.00022137,2]
[334464906,1723128645832,-14906.5479384,0.00022172,4]
[334464907,1723128645841,-10613.493304,0.00022182,4]
[334464908,1723128645851,-3113.97864251,0.00022192,30]
[334464909,1723128645860,-10613.493304,0.00022282,4]
[334464910,1723128645869,-151.0,0.00022292,7]
[334464911,1723128645879,-1000.0,0.000223,14]
[334464912,1723128645888,-3113.97864251,0.00022301,30]
[334464913,1723128645898,-14906.5479384,0.00022374,4]
[334464914,1723128645908,-3113.97864251,0.00022384,30]
[334464915,1723128645917,-151.0,0.00022384,7]
[334464916,1723128645927,-323.23838509,0.000224,2]
[334464917,1723128645937,-151.0,0.0002242,7]
[334464918,1723128645946,-151.0,0.0002242,7]
[334464919,1723128645955,-200.231002,0.0002242,7]
[334464920,1723128645965,-200.231002,0.0002242,7]
[334464921,1723128645974,-10613.493304,0.00022435,4]
[334464922,1723128645984,-150.0,0.00022451,2]
[334464923,1723128645993,-3113.97864251,0.00022466,30]
[334464924,1723128646003,-400.69,0.00022466,2]
[334464925,1723128646013,-150.0,0.00022495,2]
[334464926,1723128646023,-150.0,0.00022502,2]
[334464927,1723128646033,-1674.34321256,0.00022516,10]
[334464928,1723128646043,-1664.83369266,0.00022516,10]
[334464929,1723128646053,-250.0,0.00022521,2]
[334464930,1723128646064,-150.0,0.00022564,2]
[334464931,1723128646082,-3113.97864251,0.00022575,30]
[334464932,1723128646091,-3603.38042712,0.00022632,2]
[334464933,1723128646101,-14906.5479384,0.00022633,4]
[334464934,1723128646110,-10613.493304,0.00022643,4]
[334464935,1723128646120,-200.0,0.00022646,11]
[334464936,1723128646133,-3113.97864251,0.00022658,30]
[334464937,1723128646143,-150.0,0.00022666,2]
[334464938,1723128646152,-2410.464,0.0002268,2]
[334464939,1723128646163,-10613.493304,0.00022709,4]
[334464940,1723128646172,-151.0,0.0002271,7]
[334464941,1723128646181,-151.0,0.00022719,7]
[334464942,1723128646191,-150.0,0.00022736,2]
[334464943,1723128646201,-3113.97864251,0.0002274,30]
[334464944,1723128646211,-151.0,0.0002274,7]
[334464945,1723128646220,-298.775622,0.0002274,7]
[334464946,1723128646230,-200.231002,0.0002274,7]
[334464947,1723128646239,-200.231002,0.0002274,7]
[334464948,1723128646250,-323.23838509,0.00022757,2]
[334464949,1723128646259,-150.0,0.00022791,2]
[334464950,1723128646268,-14906.5479384,0.0002282,4]
[334464951,1723128646278,-10613.493304,0.00022829,4]
[334464952,1723128646288,-3113.97864251,0.00022849,30]
[334464953,1723128646297,-10613.493304,0.0002287,4]
[334464954,1723128646309,-14906.5479384,0.0002287,4]
[334464955,1723128646318,-150.0,0.00022873,2]
[334464956,1723128646328,-151.0,0.0002288,7]
[334464957,1723128646337,-10613.493304,0.0002288,4]
[334464958,1723128646347,-151.0,0.0002289,7]
[334464959,1723128646356,-200.231002,0.0002289,7]
[334464960,1723128646365,-200.231002,0.0002289,7]
[334464961,1723128646375,-10613.493304,0.0002289,4]
[334464962,1723128646384,-151.0,0.0002289,7]
[334464963,1723128646394,-16383.61108057,0.000229,2]
[334464964,1723128646403,-1000.0,0.000229,8]
[334464965,1723128646413,-14906.5479384,0.00022922,4]
[334464966,1723128646424,-3113.97864251,0.00022932,30]
[334464967,1723128646433,-171756.91384873,0.00023,2]
[334464968,1723128646443,-989.0,0.00023,6]
[334464969,1723128646453,-500.0,0.00023,2]
[334464970,1723128646463,-500.0,0.00023,2]
[334464971,1723128646472,-500.0,0.00023,2]
[334464972,1723128646482,-500.0,0.00023,2]
[334464973,1723128646491,-500.0,0.00023,2]
[334464974,1723128646501,-500.0,0.00023,2]
[334464975,1723128646511,-500.0,0.00023,2]
[334464976,1723128646520,-921.0,0.00023,2]
[334464977,1723128646530,-315.54,0.00023,2]
[334464978,1723128646539,-200.0,0.00023,2]
[334464979,1723128646550,-3113.97864251,0.00023041,30]
[334464980,1723128646561,-151.0,0.00023065,7]
[334464981,1723128646571,-10613.493304,0.00023066,4]
[334464982,1723128646580,-14906.5479384,0.00023066,4]
[334464983,1723128646591,-350.0,0.00023068,2]
[334464984,1723128646600,-150.0,0.00023071,2]
[334464985,1723128646610,-10613.493304,0.00023076,4]
[334464986,1723128646619,-1000.0,0.00023088,2]
[334464987,1723128646629,-834.97,0.00023096,2]
[334464988,1723128646639,-420.82,0.00023096,2]
[334464989,1723128646648,-420.82,0.00023096,2]
[334464990,1723128646658,-834.97,0.00023096,2]
[334464991,1723128646667,-834.97,0.00023096,2]
[334464992,1723128646676,-420.82,0.00023096,2]
[334464993,1723128646687,-833.35,0.00023096,2]
[334464994,1723128646696,-420.82,0.00023096,2]
[334464995,1723128646706,-420.82,0.00023096,2]
[334464996,1723128646716,-420.28,0.00023096,2]
[334464997,1723128646725,-323.23838509,0.00023114,2]
[334464998,1723128646735,-151.0,0.00023123,7]
[334464999,1723128646745,-3113.97864251,0.00023123,30]
[334465000,1723128646754,-150.0,0.00023181,2]
[334465001,1723128646764,-3603.38042712,0.00023199,2]
[334465002,1723128646774,-150.65729119,0.00023199,2]
[334465003,1723128646783,-3113.97864251,0.00023205,30]
[334465004,1723128646793,-180.0,0.00023205,2]
[334465005,1723128646803,-981.56978446,0.00023293,2]
[334465006,1723128646812,-150.0,0.00023299,2]
[334465007,1723128646822,-200.0,0.00023342,2]
[334465008,1723128646831,-14906.5479384,0.0002336,4]
[334465009,1723128646841,-482.08188525,0.0002337,2]
[334465010,1723128646851,-10613.493304,0.0002337,4]
[334465011,1723128646860,-10613.493304,0.0002338,4]
[334465012,1723128646869,-494.0,0.000234,6]
[334465013,1723128646878,-989.0,0.000234,6]
[334465014,1723128646888,-192.0,0.000234,6]
[334465015,1723128646901,-646.0,0.000234,11]
[334465016,1723128646911,-151.0,0.000234,7]
[334465017,1723128646920,-200.231002,0.000234,7]
[334465018,1723128646929,-200.23101,0.000234,7]
[334465019,1723128646939,-505.966864,0.000234,2]
[334465020,1723128646949,-150.0,0.00023466,2]
[334465021,1723128646959,-323.23838509,0.00023471,2]
[334465022,1723128646967,-150.0,0.00023496,2]
[334465023,1723128646977,-150.0,0.00023525,2]
[334465024,1723128646986,-1931.37486418,0.0002354,2]
[334465025,1723128646995,-150.0,0.00023543,2]
[334465026,1723128647004,-368.54,0.00023557,2]
[334465027,1723128647013,-250.0,0.00023558,2]
[334465028,1723128647023,-478.0,0.0002358,2]
[334465029,1723128647032,-150.0,0.00023604,2]
[334465030,1723128647042,-450.0,0.00023616,2]
[334465031,1723128647051,-150.0,0.00023648,2]
[334465032,1723128647061,-150.0,0.00023729,2]
[334465033,1723128647070,-3603.38042712,0.00023766,2]
[334465034,1723128647080,-150.0,0.0002379,2]
[334465035,1723128647089,-150.0,0.00023796,2]
[334465036,1723128647098,-5404.0988,0.000238,5]
[334465037,1723128647108,-150.0,0.00023809,2]
[334465038,1723128647117,-323.23838509,0.00023829,2]
[334465039,1723128647129,-14906.5479384,0.00023845,4]
[334465040,1723128647139,-150.0,0.00023855,2]
[334465041,1723128647148,-150.0,0.00023863,2]
[334465042,1723128647158,-150.0,0.00023883,2]
[334465043,1723128647167,-646.0,0.000239,12]
[334465044,1723128647178,-2100.0,0.000239,8]
[334465045,1723128647187,-929.0,0.00023917,2]
[334465046,1723128647197,-151.0,0.0002401,7]
[334465047,1723128647208,-150.0,0.00024014,2]
[334465048,1723128647218,-398.43,0.00024028,2]
[334465049,1723128647227,-841.46,0.00024055,2]
[334465050,1723128647236,-315.54,0.0002407,2]
[334465051,1723128647246,-3200.0,0.000241,8]
[334465052,1723128647255,-150.0,0.00024104,2]
[334465053,1723128647265,-929.0,0.00024164,2]
[334465054,1723128647274,-550.0,0.00024164,2]
[334465055,1723128647284,-150.0,0.00024166,2]
[334465056,1723128647294,-323.23838509,0.00024186,2]
[334465057,1723128647305,-150.0,0.00024191,2]
[334465058,1723128647314,-150.0,0.00024192,2]
[334465059,1723128647322,-4300.0,0.000242,8]
[334465060,1723128647332,-150.0,0.00024201,2]
[334465061,1723128647341,-2503.4,0.00024207,2]
[334465062,1723128647350,-154.54,0.00024224,2]
[334465063,1723128647360,-150.0,0.00024225,2]
[334465064,1723128647369,-350.0,0.00024242,2]
[334465065,1723128647378,-150.0,0.00024248,2]
[334465066,1723128647388,-5716.6527,0.00024282,2]
[334465067,1723128647397,-14906.5479384,0.0002429,4]
[334465068,1723128647407,-297.76,0.00024293,7]
[334465069,1723128647416,-5300.0,0.000243,8]
[334465070,1723128647426,-2503.4,0.00024303,2]
[334465071,1723128647435,-203.1662,0.00024306,2]
[334465072,1723128647445,-150.0,0.00024308,2]
[334465073,1723128647454,-150.0,0.00024315,2]
[334465074,1723128647463,-150.0,0.00024318,2]
[334465075,1723128647473,-1000.0,0.00024333,2]
[334465076,1723128647482,-3603.38042712,0.00024333,2]
[334465077,1723128647492,-500.0,0.00024338,2]
[334465078,1723128647502,-500.0,0.00024347,2]
[334465079,1723128647511,-4690.4999878,0.0002435,7]
[334465080,1723128647521,-500.0,0.00024356,2]
[334465081,1723128647531,-500.0,0.00024365,2]
[334465082,1723128647540,-500.0,0.00024372,2]
[334465083,1723128647552,-500.0,0.00024374,2]
[334465084,1723128647561,-150.0,0.00024382,2]
[334465085,1723128647571,-500.0,0.00024382,2]
[334465086,1723128647581,-14906.5479384,0.0002439,4]
[334465087,1723128647590,-500.0,0.00024391,2]
[334465088,1723128647599,-1500.0,0.000244,2]
[334465089,1723128647609,-2000.0,0.000244,2]
[334465090,1723128647619,-500.0,0.000244,2]
[334465091,1723128647628,-162.82471778,0.000244,2]
[334465092,1723128647638,-500.0,0.000244,2]
[334465093,1723128647648,-2000.0,0.000244,2]
[334465094,1723128647657,-170.0,0.000244,2]
[334465095,1723128647666,-646.0,0.000244,12]
[334465096,1723128647677,-173.5900964,0.000244,2]
[334465097,1723128647687,-1000.0,0.000244,8]
[334465098,1723128647697,-11751.92568047,0.000244,2]
[334465099,1723128647706,-1327.53949274,0.000244,2]
[334465100,1723128647716,-332.12913059,0.000244,2]
[334465101,1723128647725,-1770.37352673,0.000244,2]
[334465102,1723128647735,-165.19422617,0.000244,2]
[334465103,1723128647744,-1821.44707107,0.00024403,2]
[334465104,1723128647754,-1821.44707107,0.00024405,2]
[334465105,1723128647763,-500.0,0.00024406,2]
[334465106,1723128647773,-500.0,0.00024406,2]
[334465107,1723128647783,-929.0,0.0002441,2]
[334465108,1723128647792,-791.22710386,0.00024412,2]
[334465109,1723128647801,-791.22710386,0.00024416,2]
[334465110,1723128647812,-1821.44707107,0.00024433,2]
[334465111,1723128647822,-1821.44707107,0.00024435,2]
[334465112,1723128647831,-1821.44707107,0.00024435,2]
[334465113,1723128647841,-1821.44707107,0.00024441,2]
[334465114,1723128647850,-150.0,0.00024446,2]
[334465115,1723128647859,-14906.5479384,0.00024449,4]
[334465116,1723128647869,-150.0,0.00024453,2]
[334465117,1723128647878,-1821.44707107,0.00024459,2]
[334465118,1723128647887,-791.22710386,0.0002446,2]
[334465119,1723128647896,-791.22710386,0.00024462,2]
[334465120,1723128647906,-1821.44707107,0.00024469,2]
[334465122,1723128647915,-791.22710386,0.00024469,2]
[334465124,1723128647925,-160.51589877,0.00024469,10]
[334465125,1723128647934,-400.0,0.0002447,2]
[334465126,1723128647943,-21083.62400282,0.0002447,2]
[334465127,1723128647954,-400.0,0.0002447,2]
[334465128,1723128647963,-150.0,0.00024472,2]
[334465129,1723128647972,-791.22710386,0.00024476,2]
[334465130,1723128647982,-44719.6438152,0.00024481,4]
[334465131,1723128647991,-791.22710386,0.00024485,2]
[334465132,1723128648001,-33495.64383344,0.0002449,4]
[334465133,1723128648023,-151.0,0.00023361,7]
[334465134,1723128648033,-29088.5817097,0.0002449,4]
[334465135,1723128648044,-39893.18226,0.0002449,4]
[334465138,1723128648587,-522.83039782,0.00017004,2]
[334465139,1723128648596,-189.79020204,0.00020109,2]
[334465140,1723128648604,-1868.42776586,0.0002449,4]
[334465141,1723128648614,-29813.0958768,0.0002449,4]
[334465142,1723128648623,-64365.75197297,0.00024491,2]
[334465143,1723128648631,-478.0,0.00024491,2]
[334465144,1723128648641,-478.0,0.00024491,2]
[334465145,1723128648649,-478.0,0.00024491,2]
[334465146,1723128648658,-478.0,0.00024491,2]
[334465147,1723128648667,-478.0,0.00024491,2]
[334465148,1723128648676,-478.0,0.00024491,2]
[334465149,1723128648684,-478.0,0.00024491,2]
[334465150,1723128648693,-478.0,0.00024491,2]
[334465151,1723128648703,-478.0,0.00024491,2]
[334465152,1723128648711,-478.0,0.00024491,2]
[334465153,1723128648721,-478.0,0.00024491,2]
[334465154,1723128648729,-478.0,0.00024491,2]
[334465155,1723128648739,-200.0,0.00024491,2]
[334465156,1723128648748,-200.0,0.00024491,2]
[334465157,1723128648756,-200.0,0.00024491,2]
[334465158,1723128648765,-200.0,0.00024491,2]
[334465159,1723128648775,-200.0,0.00024491,2]
[334465160,1723128648784,-200.0,0.00024491,2]
[334465161,1723128648794,-200.0,0.00024491,2]
[334465162,1723128648803,-200.0,0.00024491,2]
[334465163,1723128648815,-200.0,0.00024491,2]
[334465164,1723128648824,-201.0,0.00024491,2]
[334465165,1723128648834,-153.84058534,0.00024492,2]
[334465166,1723128648844,-546.18405436,0.00024493,2]
[334465167,1723128648854,-791.22710386,0.00024495,2]
[334465168,1723128648863,-728.10524485,0.00024496,2]
[334465169,1723128648874,-420.88393679,0.00024497,2]
[334465170,1723128648883,-2222.57881888,0.00024497,2]
[334465171,1723128648893,-373.32372768,0.00024499,2]
[334465172,1723128648902,-1106.19059868,0.00024499,10]
[334465173,1723128648912,-1106.19059868,0.00024499,10]
[334465174,1723128648922,-1106.19059868,0.00024499,10]
[334465175,1723128648931,-216825.37755304,0.000245,9]
[334465176,1723128648941,-579877.43069961,0.000245,5]
[334465177,1723128648954,-76852.45257324,0.000245,5]
[334465178,1723128648965,-522.01898272,0.000245,5]
[334465179,1723128648977,-637.525,0.000245,5]
[334465180,1723128648989,-867888.6535547,0.000245,5]
[334465181,1723128649001,-311488.2477227,0.000245,5]
[334465182,1723128649012,-644.28818466,0.000245,5]
[334465183,1723128649024,-2271.65555868,0.000245,5]
[334465184,1723128649035,-343.53915486,0.000245,5]
[334465185,1723128649052,-4662.85500071,0.000245,5]
[334465186,1723128649067,-3160.55,0.000245,5]
[334465187,1723128649079,-2934.44965996,0.000245,5]
[334465188,1723128649090,-24234.05534676,0.000245,5]
[334465189,1723128649101,-16744.559,0.000245,5]
[334465190,1723128649113,-3490.9987,0.000245,5]
[334465191,1723128649126,-1156.8508614,0.000245,5]
[334465192,1723128649137,-1209.43965475,0.000245,5]
[334465193,1723128649148,-6271.4,0.000245,5]
[334465194,1723128649160,-1353.50812905,0.000245,5]
[334465195,1723128649176,-1900.0,0.000245,5]
[334465208,1723128791227,-150.0,0.00013973,2]
[334465209,1723128797375,500.0,0.00025851,120]
[334465210,1723128923255,165.55,0.00026565,120]
[334465224,1723129288494,199.0,0.0002701,120]
[334465225,1723129398100,500.0,0.00026184,120]
[334465244,1723129832278,-4.54,0.00013973,2]
[334465246,1723129832288,-150.08,0.00013973,2]
[334465248,1723129832297,-114.36717114,0.00017779,2]
[334465250,1723129832308,-330.14637494,0.00017779,2]
[334465252,1723129832318,-2927.85043525,0.0001778,2]
[334465254,1723129832327,-300.0,0.00018498,2]
[334465256,1723129832336,-2376.93018822,0.00018499,2]
[334465258,1723129832345,-115.07300159,0.0001924,2]
[334465262,1723129833527,-3285.74436494,0.0001924,2]
[334465263,1723129833538,-300.0,0.00020348,2]
[334465264,1723129833548,-5401.5400912,0.0002038,2]
[334465265,1723129833558,-298.82,0.00021055,2]
[334465266,1723129833568,-371.95167885,0.00022,2]
[334465267,1723129833579,-150.0,0.00022297,2]
[334465268,1723129833589,-150.0,0.0002243,2]
[334465269,1723129833599,-150.0,0.00022529,2]
[334465270,1723129833609,-1000.0,0.0002257,2]